fUSD/lending_fUSD_20240722
["ID","MTS","AMOUNT","RATE_DAILY","PERIOD"]
[332887308,1721632449873,-150.0,0.00034551,120]
[332887309,1721632449899,-150.0,0.00034554,120]
[332887310,1721632449924,-1122.84665184,0.00034567,36]
[332887311,1721632449950,-150.0,0.00034606,120]
[332887312,1721632449975,-574.43,0.000347,14]
[332887313,1721632449999,-680.13,0.00034794,14]
[332887314,1721632450025,-6330.792661,0.000348,30]
[332887315,1721632450055,-150.0,0.00034844,120]
[332887316,1721632450079,-1274.896194,0.0003494,14]
[332887317,1721632450103,-1000.0,0.0003496,14]
[332887318,1721632450126,-1000.0,0.0003498,14]
[332887319,1721632450150,-185.6,0.00035,30]
[332887320,1721632450174,-1366.13918792,0.00035,30]
[332887321,1721632450198,-3924.06482529,0.00035,90]
[332887322,1721632450223,-1149.0,0.00035,30]
[332887323,1721632450248,-3000.0,0.00035,30]
[332887324,1721632450276,-3000.0,0.00035,45]
[332887325,1721632450300,-1836.98571403,0.00035,30]
[332887326,1721632450325,-2000.0,0.00035,30]
[332887327,1721632450351,-2000.0,0.00035,30]
[332887328,1721632450374,-2000.0,0.00035,30]
[332887329,1721632450398,-2000.0,0.00035,30]
[332887330,1721632450422,-8441.056881,0.00035,30]
[332887331,1721632450446,-300.0,0.00035,120]
[332887332,1721632450474,-1000.0,0.00035,14]
[332887333,1721632450498,-1376.74730289,0.00035,30]
[332887334,1721632450524,-150.0,0.00035045,120]
[332887335,1721632450549,-150.0,0.00035184,120]
[332887336,1721632450576,-150.0,0.00035399,120]
[332887337,1721632450601,-10551.321101,0.000355,30]
[332887338,1721632450626,-12661.585322,0.000356,30]
[332887339,1721632450654,-214.84,0.000356,31]
[332887340,1721632450683,-214.84,0.000356,31]
[332887341,1721632450710,-214.84,0.000356,31]
[332887342,1721632450736,-214.84,0.000356,31]
[332887343,1721632450762,-214.84,0.000356,31]
[332887344,1721632450790,-214.84,0.000356,31]
[332887345,1721632450819,-214.84,0.000356,31]
[332887346,1721632450847,-214.84,0.000356,31]
[332887347,1721632450876,-214.84,0.000356,31]
[332887348,1721632450904,-214.84,0.000356,31]
[332887349,1721632450932,-214.84,0.000356,31]
[332887350,1721632450959,-214.84,0.000356,31]
[332887351,1721632450986,-214.84,0.000356,31]
[332887352,1721632451012,-214.84,0.000356,31]
[332887353,1721632451040,-214.84,0.000356,31]
[332887354,1721632451067,-214.84,0.000356,31]
[332887355,1721632451094,-214.84,0.000356,31]
[332887356,1721632451121,-214.84,0.000356,31]
[332887357,1721632451149,-214.84,0.000356,31]
[332887358,1721632451176,-214.84,0.000356,31]
[332887359,1721632451204,-150.0,0.00035612,120]
[332887360,1721632451230,-680.13,0.00035616,15]
[332887361,1721632451260,-150.0,0.00035647,120]
[332887362,1721632451289,-574.43,0.000357,14]
[332887363,1721632451314,-12661.585322,0.000357,30]
[332887364,1721632451339,-14771.849542,0.000358,30]
[332887365,1721632451364,-12661.585322,0.0003582,30]
[332887366,1721632451389,-2309.54560345,0.00036,21]
[332887367,1721632451414,-677.01,0.00036,14]
[332887368,1721632451438,-2000.0,0.00036,120]
[332887369,1721632451462,-2000.0,0.00036,120]
[332887370,1721632451487,-2000.0,0.00036,120]
[332887371,1721632451512,-1000.0,0.00036,120]
[332887372,1721632451538,-2000.0,0.00036,120]
[332887373,1721632451563,-200.0,0.00036,120]
[332887374,1721632451587,-900.0,0.00036,120]
[332887375,1721632451905,-150.0,0.00036051,120]
[332887376,1721632451944,-150.0,0.00036174,120]
[332887377,1721632451981,-150.0,0.00036218,120]
[332887378,1721632452040,-150.0,0.0003637,10]
[332887379,1721632452076,-680.13,0.00036438,16]
[332887380,1721632452111,-1500.0,0.000368,120]
[332887381,1721632452144,-500.0,0.00036986,14]
[332887382,1721632452178,-406.07946764,0.00036986,120]
[332887383,1721632452212,-1000.0,0.00037,10]
[332887384,1721632452248,-500.0,0.0003726,14]
[332887385,1721632452282,-680.13,0.0003726,17]
[332887386,1721632452317,-150.0,0.00037334,120]
[332887387,1721632452351,-150.0,0.00037517,120]
[332887388,1721632452384,-500.0,0.00037534,14]
[332887389,1721632452422,-214.84,0.000376,31]
[332887390,1721632452458,-214.84,0.000376,31]
[332887391,1721632452495,-214.84,0.000376,31]
[332887392,1721632452530,-214.84,0.000376,31]
[332887393,1721632452565,-214.84,0.000376,31]
[332887394,1721632452602,-214.84,0.000376,31]
[332887395,1721632452639,-214.84,0.000376,31]
[332887396,1721632452677,-214.84,0.000376,31]
[332887397,1721632452720,-214.84,0.000376,31]
[332887398,1721632452759,-214.84,0.000376,31]
[332887399,1721632452798,-214.84,0.000376,31]
[332887400,1721632452839,-214.84,0.000376,31]
[332887401,1721632452877,-214.84,0.000376,31]
[332887402,1721632452915,-214.84,0.000376,31]
[332887403,1721632452952,-214.84,0.000376,31]
[332887404,1721632452995,-214.84,0.000376,31]
[332887405,1721632453032,-214.84,0.000376,31]
[332887406,1721632453069,-214.84,0.000376,31]
[332887407,1721632453105,-214.84,0.000376,31]
[332887408,1721632453142,-214.84,0.000376,31]
[332887409,1721632453176,-150.0,0.00037676,120]
[332887410,1721632453212,-150.0,0.00037677,120]
[332887411,1721632453246,-150.0,0.00037688,120]
[332887412,1721632453281,-150.0,0.00037697,120]
[332887413,1721632453319,-2071.93244248,0.000378,70]
[332887414,1721632453357,-500.0,0.00037808,14]
[332887415,1721632453395,-150.0,0.00037817,120]
[332887416,1721632453433,-150.0,0.00037832,120]
[332887417,1721632453470,-150.0,0.00037858,120]
[332887418,1721632453508,-150.0,0.00037934,120]
[332887419,1721632453546,-185.99540664,0.00037999,120]
[332887420,1721632453582,-2294.76268577,0.00038,120]
[332887421,1721632453620,-458.07590204,0.00038,30]
[332887422,1721632453657,-1015.1561587,0.00038,120]
[332887423,1721632453693,-2000.0,0.00038,120]
[332887424,1721632453730,-1400.0,0.00038,120]
[332887425,1721632453767,-2352.75203861,0.00038,120]
[332887426,1721632453808,-219.0,0.00038,120]
[332887427,1721632453843,-681.74176126,0.00038,120]
[332887428,1721632453880,-500.0,0.00038082,14]
[332887429,1721632453917,-680.13,0.00038082,18]
[332887430,1721632453954,-150.0,0.00038146,120]
[332887431,1721632453990,-150.0,0.00038214,120]
[332887432,1721632454027,-500.0,0.00038356,14]
[332887433,1721632454062,-710.8108263,0.000384,33]
[332887434,1721632454097,-150.0,0.00038429,120]
[332887435,1721632454133,-1123.65351579,0.000385,30]
[332887436,1721632454169,-424.01616438,0.0003863,14]
[332887437,1721632454204,-643.63443359,0.000387,120]
[332887438,1721632454240,-150.0,0.00038708,120]
[332887439,1721632454277,-2000.0,0.00038765,45]
[332887440,1721632454313,-1892.18,0.00038775,30]
[332887441,1721632454348,-1926.15619614,0.000388,30]
[332887442,1721632454384,-1765.75120103,0.0003888,90]
[332887443,1721632454419,-2923.17508103,0.000389,30]
[332887444,1721632454453,-680.13,0.00038904,19]
[332887445,1721632454488,-160.0,0.00039,13]
[332887446,1721632454524,-37504.32554741,0.00039,10]
[332887447,1721632454558,-16001.62006487,0.00039,12]
[332887448,1721632454595,-1000.0,0.00039,120]
[332887449,1721632454629,-500.0,0.00039,120]
[332887450,1721632454664,-2702.50072485,0.00039,30]
[332887451,1721632454699,-500.0,0.00039,90]
[332887452,1721632454735,-5000.0,0.00039,30]
[332887453,1721632454769,-1137.0,0.00039,120]
[332887454,1721632454808,-150.0,0.00039046,120]
[332887455,1721632454842,-150.0,0.00039067,120]
[332887456,1721632454881,-150.0,0.00039086,120]
[332887457,1721632454918,-150.0,0.00039225,120]
[332887458,1721632454955,-150.0,0.00039293,120]
[332887459,1721632454991,-569.43395666,0.000394,30]
[332887460,1721632455028,-150.0,0.00039481,120]
[332887461,1721632455063,-150.0,0.00039483,120]
[332887462,1721632455098,-500.0,0.000395,90]
[332887463,1721632455135,-214.84,0.000397,31]
[332887464,1721632455173,-214.84,0.000397,31]
[332887465,1721632455209,-214.84,0.000397,31]
[332887466,1721632455246,-214.84,0.000397,31]
[332887467,1721632455283,-214.84,0.000397,31]
[332887468,1721632455319,-214.84,0.000397,31]
[332887469,1721632455355,-214.84,0.000397,31]
[332887470,1721632455392,-214.84,0.000397,31]
[332887471,1721632455427,-214.84,0.000397,31]
[332887472,1721632455463,-214.84,0.000397,31]
[332887473,1721632455499,-214.84,0.000397,31]
[332887474,1721632455536,-214.84,0.000397,31]
[332887475,1721632455573,-214.84,0.000397,31]
[332887476,1721632455608,-214.84,0.000397,31]
[332887477,1721632455928,-214.84,0.000397,31]
[332887478,1721632455970,-214.84,0.000397,31]
[332887479,1721632456009,-214.84,0.000397,31]
[332887480,1721632456046,-214.84,0.000397,31]
[332887481,1721632456083,-214.84,0.000397,31]
[332887482,1721632456118,-214.84,0.000397,31]
[332887483,1721632456153,-680.13,0.00039726,20]
[332887484,1721632456189,-150.0,0.00039798,120]
[332887485,1721632456224,-1437.60802984,0.000398,90]
[332887486,1721632456258,-249.08131775,0.0003985,30]
[332887487,1721632456295,-2233.48685793,0.000399,120]
[332887488,1721632456330,-410.0,0.00039986,120]
[332887489,1721632456365,-1203.69768509,0.00039998,31]
[332887490,1721632456402,-250.0,0.00039999,30]
[332887491,1721632456440,-50000.0,0.0004,40]
[332887492,1721632456480,-50000.0,0.0004,30]
[332887493,1721632456516,-53711.29693293,0.0004,10]
[332887494,1721632456553,-200.0,0.0004,12]
[332887495,1721632456588,-30000.0,0.0004,10]
[332887496,1721632456624,-181418.99844388,0.0004,14]
[332887497,1721632456659,-151.0,0.0004,120]
[332887498,1721632456696,-151.0,0.0004,120]
[332887499,1721632456733,-45623.2521052,0.0004,30]
[332887500,1721632456769,-2014.47,0.0004,32]
[332887501,1721632456811,-477.12749073,0.0004,30]
[332887502,1721632456847,-2696.94980958,0.0004,120]
[332887503,1721632456885,-2926.81634382,0.0004,30]
[332887504,1721632456921,-1483.42075503,0.0004,30]
[332887505,1721632456956,-156.22162129,0.0004,45]
[332887506,1721632456991,-2346.30535114,0.0004,120]
[332887507,1721632457026,-3049.00299668,0.0004,120]
[332887508,1721632457061,-1098.11069862,0.0004,60]
[332887509,1721632457096,-701.2753511,0.0004,30]
[332887510,1721632457131,-441.80731564,0.0004,30]
[332887511,1721632457164,-2479.89847588,0.0004,120]
[332887512,1721632457199,-2853.91309508,0.0004,120]
[332887513,1721632457233,-2041.57679035,0.0004,120]
[332887514,1721632457267,-1000.0,0.0004,120]
[332887515,1721632457303,-500.0,0.0004,120]
[332887516,1721632457337,-2000.0,0.0004,120]
[332887517,1721632457371,-1300.0,0.0004,120]
[332887518,1721632457405,-524.23148898,0.0004,30]
[332887519,1721632457439,-3000.0,0.0004,90]
[332887520,1721632457472,-3000.0,0.0004,85]
[332887521,1721632457507,-3000.0,0.0004,95]
[332887522,1721632457541,-3000.0,0.0004,80]
[332887523,1721632457574,-2000.0,0.0004,120]
[332887524,1721632457608,-2000.0,0.0004,120]
[332887525,1721632457645,-1836.01858531,0.0004,120]
[332887526,1721632457681,-2000.0,0.0004,120]
[332887527,1721632457716,-2000.0,0.0004,120]
[332887528,1721632457758,-1400.0,0.0004,120]
[332887529,1721632457792,-40139.6697097,0.0004,30]
[332887530,1721632457830,-348.0,0.0004,60]
[332887531,1721632457867,-2352.75203861,0.0004,120]
[332887532,1721632457903,-1189.82503411,0.0004,120]
[332887533,1721632457940,-448.0,0.0004,120]
[332887534,1721632457976,-323.76419788,0.0004,120]
[332887535,1721632458011,-1298.80753096,0.0004,60]
[332887536,1721632458045,-500.0212501,0.0004,30]
[332887537,1721632458081,-1885.287678,0.0004,120]
[332887538,1721632458115,-710.3,0.0004,10]
[332887539,1721632458152,-318.73,0.0004,120]
[332887540,1721632458188,-791.19,0.0004,120]
[332887541,1721632458223,-31749.80899036,0.0004,120]
[332887542,1721632458260,-1402.67,0.0004,120]
[332887543,1721632458297,-622.55,0.0004,120]
[332887544,1721632458335,-276.297998,0.0004,60]
[332887545,1721632458372,-150.0,0.00040196,120]
[332887546,1721632458410,-150.0,0.00040297,120]
[332887547,1721632458448,-150.0,0.00040311,120]
[332887548,1721632458486,-150.0,0.00040396,120]
[332887549,1721632458527,-500.0,0.000405,120]
[332887550,1721632458566,-150.0,0.00040514,120]
[332887551,1721632458605,-680.13,0.00040547,21]
[332887552,1721632458644,-150.0,0.00040604,120]
[332887553,1721632458682,-150.0,0.00040613,120]
[332887554,1721632458720,-151.0,0.00040658,120]
[332887555,1721632458758,-150.0,0.00040759,120]
[332887556,1721632458797,-150.0,0.00040773,120]
[332887557,1721632458839,-150.0,0.00040791,120]
[332887558,1721632458875,-150.0,0.00040807,120]
[332887559,1721632458914,-150.0,0.00040818,120]
[332887560,1721632458953,-150.0,0.00040924,120]
[332887561,1721632458993,-50000.0,0.00041,41]
[332887562,1721632459030,-50000.0,0.00041,31]
[332887563,1721632459069,-158.67823858,0.00041,120]
[332887564,1721632459109,-500.0,0.00041,120]
[332887565,1721632459145,-14221.75440716,0.00041,30]
[332887566,1721632459180,-2013.27,0.00041,32]
[332887567,1721632459218,-696.0,0.00041,120]
[332887568,1721632459255,-1000.0,0.00041,120]
[332887569,1721632459291,-985.80832662,0.00041,120]
[332887570,1721632459329,-3065.63118705,0.00041,120]
[332887571,1721632459366,-359.66220634,0.00041,120]
[332887572,1721632459401,-21938.93,0.00041,14]
[332887573,1721632459438,-152.0,0.00041041,31]
[332887574,1721632459475,-397.17490498,0.00041044,120]
[332887575,1721632459512,-150.0,0.0004105,120]
[332887576,1721632459549,-1258.29802521,0.00041078,120]
[332887577,1721632459587,-6382.6,0.00041095,60]
[332887578,1721632459624,-3500.0,0.00041095,120]
[332887579,1721632459663,-1531.41,0.00041095,120]
[332887580,1721632459702,-1743.27,0.00041095,120]
[332887581,1721632460044,-4000.0,0.00041096,30]
[332887582,1721632461603,638.084564,0.00033,14]
[332887583,1721632461791,209.78,0.00038356,120]
[332887584,1721632462422,1397.27,0.00027397,10]
[332887585,1721632464051,938.22,0.00038356,120]
[332887586,1721632464322,938.22,0.00038356,120]
[332887587,1721632464543,1164.39,0.00027397,10]
[332887588,1721632464589,938.22,0.00038356,120]
[332887589,1721632464842,938.22,0.00038356,120]
[332887590,1721632465110,938.22,0.00038356,120]
[332887591,1721632465366,938.22,0.00038356,120]
[332887592,1721632465639,938.22,0.00038356,120]
[332887593,1721632465921,938.22,0.00038356,120]
[332887594,1721632466172,938.22,0.00038356,120]
[332887595,1721632466441,938.22,0.00038356,120]
[332887596,1721632466714,938.22,0.00038356,120]
[332887597,1721632466976,938.22,0.00038356,120]
[332887598,1721632467240,938.22,0.00038356,120]
[332887599,1721632467488,938.22,0.00038356,120]
[332887600,1721632467751,938.22,0.00038356,120]
[332887601,1721632468011,938.22,0.00038356,120]
[332887602,1721632468261,938.22,0.00038356,120]
[332887603,1721632468556,938.22,0.00038356,120]
[332887604,1721632469149,938.22,0.00038356,120]
[332887605,1721632469767,938.22,0.00038356,120]
[332887606,1721632470247,938.22,0.00038356,120]
[332887607,1721632470521,938.22,0.00038356,120]
[332887608,1721632470809,938.22,0.00038356,120]
[332887609,1721632471391,938.43037852,0.00038356,120]
[332887610,1721632571651,350.51,8.501e-05,2]
[332887611,1721632745765,155.0,0.00010304,60]
[332887612,1721632766062,168.66582171,0.00010304,20]
[332887614,1721633124058,332.98,8.328e-05,2]
[332887628,1721633433775,-1000.0,0.0001,2]
[332887629,1721633433785,-359.88074679,0.0001,2]
[332887630,1721633433795,-235.59743821,0.00010094,2]
[332887631,1721633433805,-250.0,0.00010166,2]
[332887632,1721633433814,-220.12665436,0.00010208,2]
[332887633,1721633433826,-29.87334564,0.00010208,2]
[332887634,1721633433836,-359.13633008,0.00010225,2]
[332887635,1721633433852,-85.52366992,0.00010225,2]
[332887636,1721633433861,-300.0,0.00010227,2]
[332887637,1721633433871,-9151.58273712,0.00010228,2]
[332887638,1721633433890,-1975.34110116,0.00010228,2]
[332887639,1721633433899,-299.01889884,0.00010229,2]
[332887640,1721633433919,-588.74678369,0.00010229,2]
[332887641,1721633433931,-2009.17611856,0.00010229,2]
[332887642,1721633433942,-542.58200591,0.00010229,2]
[332887655,1721633437870,-407.69893079,0.00010229,2]
[332887656,1721633437881,-3826.61502,0.00010229,2]
[332887657,1721633437896,-12212.22040255,0.00010229,2]
[332887658,1721633437938,-302.52178472,0.00010229,2]
[332887659,1721633437950,-828.62005494,0.00010229,2]
[332887660,1721633437959,-141.16145395,0.00010304,2]
[332887661,1721633437972,-159.10396611,0.00010304,2]
[332887662,1721633437981,-266.99501053,0.00010304,2]
[332887663,1721633437991,-800.0,0.0001035,2]
[332887664,1721633438000,-199.24085223,0.000104,2]
[332887665,1721633438011,-40.75914777,0.000104,2]
[332887666,1721633438020,-299.99,0.000104,2]
[332887667,1721633438030,-254.25,0.00010412,2]
[332887668,1721633438039,-499.99,0.0001046,2]
[332887669,1721633438048,-468.7,0.0001046,2]
[332887670,1721633438057,-150.99,0.0001046,2]
[332887671,1721633438066,-240.0,0.0001054,2]
[332887672,1721633438075,-332.98,0.00010592,2]
[332887673,1721633438084,-629.63,0.00010596,2]
[332887674,1721633438094,-150.0,0.00010596,2]
[332887675,1721633438103,-9272.97295858,0.00010597,2]
[332887676,1721633438117,-156.90150033,0.00010597,2]
[332887677,1721633438126,-196.76492393,0.00010597,2]
[332887678,1721633438136,-155.19656206,0.00010597,2]
[332887679,1721633438146,-155.12819673,0.00010597,2]
[332887680,1721633438157,-648.8628764,0.00010597,2]
[332887681,1721633438167,-155.0,0.00010597,2]
[332887682,1721633438177,-928.72745513,0.00010597,2]
[332887683,1721633438191,-342.77421935,0.00010597,2]
[332887684,1721633438202,-135.05591816,0.00010597,2]
[332887685,1721633438212,-155.61097828,0.00010597,2]
[332887686,1721633438221,-240.0,0.0001067,2]
[332887687,1721633438230,-151.97216266,0.00010701,2]
[332887688,1721633438239,-240.0,0.0001081,2]
[332887689,1721633438248,-193.2122669,0.000109,3]
[332887690,1721633438259,-6.7877331,0.000109,3]
[332887691,1721633438268,-200.0,0.00010924,2]
[332887692,1721633438278,-240.0,0.0001095,2]
[332887693,1721633438287,-179.65,0.00010959,2]
[332887694,1721633438296,-178.94,0.00010959,2]
[332887695,1721633438306,-250.0,0.00010959,2]
[332887696,1721633438315,-894.72,0.00010959,2]
[332887697,1721633438324,-500.0,0.00011,4]
[332887698,1721633438332,-150.0,0.00011078,2]
[332887699,1721633438341,-150.0,0.00011078,2]
[332887700,1721633438350,-116.55527209,0.0001108,2]
[332887701,1721633438362,-123.44472791,0.0001108,2]
[332887702,1721633438371,-700.0,0.000111,4]
[332887703,1721633438380,-179.24883209,0.00011105,2]
[332887704,1721633438398,-1886.88,0.00011105,2]
[332887705,1721633438409,-998.52381322,0.00011105,2]
[332887706,1721633438431,-1520.60108001,0.00011105,2]
[332887707,1721633438443,-20172.95644128,0.00011105,2]
[332887708,1721633438452,-489.29789614,0.00011105,2]
[332887709,1721633438461,-227.52468246,0.00011105,2]
[332887710,1721633438470,-150.0,0.00011178,2]
[332887711,1721633438479,-1000.0,0.000112,4]
[332887712,1721633438488,-979.89316172,0.00011206,2]
[332887713,1721633438497,-240.0,0.0001122,2]
[332887714,1721633438506,-420.0,0.00011247,2]
[332887715,1721633438515,-196.66657106,0.000113,4]
[332887716,1721633438527,-1103.33342894,0.000113,4]
[332887717,1721633438536,-231.6549779,0.00011324,2]
[332887718,1721633438545,-240.0,0.0001136,2]
[332887719,1721633438553,-492.21599629,0.00011384,2]
[332887720,1721633438562,-3683.329264,0.00011384,2]
[332887721,1721633438571,-200.0,0.000114,4]
[332887722,1721633438581,-240.0,0.0001149,2]
[332887723,1721633438949,-200.0,0.000115,4]
[332887724,1721633438988,-3683.329264,0.00011526,2]
[332887725,1721633438998,-185.73,0.00011528,2]
[332887726,1721633439008,-200.0,0.000116,4]
[332887727,1721633439018,-240.0,0.0001163,2]
[332887728,1721633439028,-800.0,0.00011644,2]
[332887729,1721633439037,-3284.52859187,0.00011669,2]
[332887734,1721633439980,-398.80067213,0.00011669,2]
[332887735,1721633439990,-801.175,0.000117,2]
[332887736,1721633439999,-200.0,0.000117,4]
[332887737,1721633440009,-254.25,0.00011713,2]
[332887738,1721633440018,-240.0,0.0001177,2]
[332887739,1721633440028,-443.6594,0.00011794,2]
[332887740,1721633440037,-4308.07015925,0.000118,2]
[332887741,1721633440061,-5691.92984075,0.000118,2]
[332887742,1721633440071,-3370.7638,0.000118,2]
[332887743,1721633440080,-172021.26378212,0.000118,2]
[332887744,1721633440092,-2980.52193553,0.000118,2]
[332887745,1721633440103,-485.2,0.000118,2]
[332887746,1721633440137,-384.644286,0.000118,2]
[332887747,1721633440148,-3366.05,0.000118,2]
[332887748,1721633440161,-707.12336694,0.000118,2]
[332887749,1721633440195,-359.38972543,0.000118,2]
[332887750,1721633440207,-535.94440879,0.000118,2]
[332887751,1721633440258,-1048.582763,0.000118,2]
[332887752,1721633440270,-1352.12834375,0.000118,2]
[332887753,1721633440282,-1300.47673645,0.000118,2]
[332887754,1721633440293,-424.4207153,0.000118,2]
[332887755,1721633440434,-19558.14823669,0.000118,2]
[332887756,1721633440445,-166.5468764,0.000118,2]
[332887757,1721633440454,-800.0,0.000118,4]
[332887758,1721633440463,-223.21652696,0.000118,2]
[332887759,1721633440473,-458.0624,0.000118,2]
[332887760,1721633440483,-10021.70041821,0.000118,2]
[332887761,1721633440492,-500.0,0.00011805,2]
[332887763,1721633440501,-3683.329264,0.00011811,2]
[332887765,1721633440510,-1663.0,0.0001189,2]
[332887767,1721633440519,-3733.02,0.0001189,2]
[332887768,1721633440528,-150.0,0.0001189,2]
[332887770,1721633440537,-159.90390876,0.0001189,2]
[332887772,1721633440546,-2843.88960276,0.00011896,2]
[332887774,1721633440556,-155.86929334,0.00011896,2]
[332887775,1721633440565,-1683.9312762,0.00011899,2]
[332887776,1721633440575,-221.38141572,0.00011899,2]
[332887777,1721633440584,-99288.00078096,0.000119,2]
[332887778,1721633440594,-527.39556223,0.000119,2]
[332887809,1721633443005,-2358.90653918,0.000119,2]
[332887820,1721633443068,-669.05626928,0.000119,2]
[332887859,1721633446652,-13579848.77524022,0.000119,2]
[332887860,1721633448070,-275.11945066,0.000119,2]
[332887861,1721633448082,-1113.8701207,0.000119,2]
[332887862,1721633448093,-14061.047,0.000119,2]
[332887863,1721633448105,-88302.332409,0.000119,2]
[332887864,1721633448132,-1598.31428799,0.000119,2]
[332887865,1721633448145,-44710.99025128,0.000119,2]
[332887866,1721633448159,-160013.18898313,0.000119,2]
[332887867,1721633448219,-298.93134934,0.000119,2]
[332887868,1721633448231,-653.347,0.000119,2]
[332887869,1721633449175,-520.0,0.00011462,2]
[332887870,1721633449186,-154.33032652,0.00011897,2]
[332887871,1721633449198,-1987.69164675,0.000119,2]
[332887872,1721633449248,-8335.50164236,0.000119,2]
[332887873,1721633449261,-1346.693192,0.000119,2]
[332887874,1721633449274,-3366.1,0.000119,2]
[332887879,1721633535466,-227.52468246,0.000109,2]
[332887880,1721633535490,-600.0,0.000109,3]
[332887881,1721633535512,-521.13,0.00010959,2]
[332887882,1721633535536,-1200.0,0.00011,4]
[332887883,1721633576403,181.52734124,0.00011,2]
[332887893,1721633606248,300.26542006,0.00011,2]
[332887894,1721633622247,300.26542006,0.00011,2]
[332887895,1721633666405,181.52734124,0.00011,2]
[332887896,1721633670493,357.0,0.00017798,120]
[332887897,1721633670974,357.0,0.00017788,120]
[332887898,1721633671473,357.0,0.00017778,120]
[332887899,1721633671943,357.0,0.00017798,120]
[332887900,1721633673843,357.0,0.00017788,120]
[332887901,1721633673897,357.0,0.00017778,120]
[332887902,1721633673945,357.0,0.00017798,120]
[332887903,1721633674065,357.0,0.00017788,120]
[332887904,1721633674555,357.0,0.00017798,120]
[332887905,1721633675965,364.99,0.00017788,120]
[332887916,1721633755075,250.0,0.00010846,2]
[332887917,1721633757262,313.86,8.929e-05,2]
[332887918,1721633760265,250.0,0.00010823,2]
[332887919,1721633790214,150.5,0.00017798,60]
[332887920,1721633790689,150.5,0.00017788,60]
[332887921,1721633793533,3066.39390379,0.00010823,2]
[332887922,1721633842419,181.52734124,0.00010823,2]
[332887923,1721633872412,181.52734124,0.00010823,2]
[332887925,1721633891344,2000.0,0.00025,120]
[332887927,1721633980691,250.0,0.00010959,2]
[332887928,1721633986139,584.0,0.00010808,2]
[332887929,1721634063831,327.82134634,0.00010808,2]
[332887936,1721634407437,298.16,9.052e-05,2]
[332887937,1721634419414,1000.0,0.00025,110]
[332887938,1721634419933,1000.0,0.00025,110]
[332887939,1721634420441,1000.0,0.00025,110]
[332887940,1721634420733,1000.0,0.00025,110]
[332887941,1721634421133,1000.0,0.00025,110]
[332887942,1721634421618,1000.0,0.00025,110]
[332887943,1721634421802,500.0,0.000109,3]
[332887944,1721634422056,1000.0,0.00025,110]
[332887945,1721634422496,1000.0,0.00025,110]
[332887946,1721634422996,1000.0,0.00025,110]
[332887947,1721634423433,1000.0,0.00025,110]
[332887950,1721634423893,1000.0,0.00025,110]
[332887951,1721634423925,284.46986233,0.00011,4]
[332887952,1721634423949,815.53013767,0.00011,4]
[332887953,1721634424336,1000.0,0.00025,110]
[332887954,1721634425009,1000.0,0.00025,110]